bitfinex/quotes_ETHUSD_20250914
["timestamp","ask_amount","ask_price","bid_price","bid_amount"]
[1757870686340,1.11767823,4615.0,4614.9,2.3664961]
[1757870686648,0.4449,4615.4,4614.9,0.19960191]
[1757870686805,0.3004,4615.0,4614.9,2.16689419]
[1757870687006,0.3004,4615.0,4614.9,2.36654744]
[1757870687836,0.3004,4615.0,4614.9,2.16689419]
[1757870688039,1.2565,4615.0,4614.9,2.16689419]
[1757870688407,0.8116,4615.0,4614.9,2.16689419]
[1757870688612,0.3004,4615.0,4614.9,2.16689419]
[1757870689919,0.8116,4615.0,4614.9,2.16689419]
[1757870690322,0.3004,4615.0,4614.9,2.16689419]
[1757870690512,0.8116,4615.0,4614.9,2.16689419]
[1757870691022,0.108,4615.5,4615.3,2.16670638]
[1757870691218,0.3004,4615.0,4614.7,0.108]
[1757870691543,0.5112,4614.9,4614.5,2.16707525]
[1757870691746,0.3004,4614.6,4614.5,2.16707525]
[1757870692039,0.5112,4614.9,4614.8,2.16694114]
[1757870692337,0.8116,4614.9,4614.8,2.16694114]
[1757870692709,1.2565,4614.9,4613.5,0.4335]
[1757870692919,0.108,4614.7,4613.9,2.27536371]
[1757870693250,0.9561,4614.8,4613.7,2.16741837]
[1757870693251,0.3004,4614.0,4613.7,2.16741837]
[1757870693565,0.8116,4614.0,4613.7,2.16741674]
[1757870693732,0.8116,4614.0,4613.6,2.16750298]
[1757870694134,0.8116,4614.0,4613.6,2.16750311]
[1757870694357,0.8116,4614.0,4613.5,0.108]
[1757870694519,0.9653,4613.9,4613.5,0.108]
[1757870694832,0.9653,4613.9,4613.3,2.27564571]
[1757870695217,0.9653,4613.9,4613.3,0.108]
[1757870695624,0.5048,4613.9,4613.5,2.16751781]
[1757870695825,0.2913,4613.6,4613.5,2.16751781]
[1757870697548,0.4605,4614.1,4613.5,2.16751781]
[1757870697549,0.108,4614.3,4613.9,2.16736383]
[1757870697866,0.2913,4614.0,4613.7,2.16744876]
[1757870698031,0.20176676,4613.9,4613.5,0.108]
[1757870698365,0.20176676,4613.8,4613.5,0.68516491]
[1757870698552,0.20176676,4613.7,4613.6,2.16750476]
[1757870699128,0.20176676,4613.9,4613.8,2.16741081]
[1757870699934,0.20176676,4613.9,4613.8,2.48271081]
[1757870700136,0.20176676,4613.9,4613.8,2.94668491]
[1757870700559,0.20176676,4613.9,4613.8,2.48271081]
[1757870701431,0.20176676,4613.9,4613.8,4.79091535]
[1757870701636,1.664,4614.9,4614.8,2.16694114]
[1757870701864,0.20234328,4614.9,4614.8,2.48224114]
[1757870702045,0.20234328,4614.9,4614.8,2.92454114]
[1757870702240,0.20234328,4614.9,4614.8,2.48224114]
[1757870702746,0.20234328,4614.9,4614.8,2.16694114]
[1757870702946,1.03354328,4614.9,4614.8,2.16694114]
[1757870703560,1.46774328,4614.9,4614.8,2.16694114]
[1757870703957,1.46774328,4614.9,4614.6,0.77395375]
[1757870704179,1.40711761,4614.8,4614.6,0.58058956]
[1757870704488,0.20234328,4614.7,4614.3,0.58058956]
[1757870704680,0.108,4614.3,4614.1,0.58058956]
[1757870704859,0.51794328,4614.2,4614.1,0.58058956]
[1757870705669,1.03354328,4614.2,4614.1,0.58058956]
[1757870705868,1.46774328,4614.2,4614.1,0.58058956]
[1757870706195,1.46774328,4614.2,4614.1,2.16726989]
[1757870706495,1.03354328,4614.2,4614.1,2.16726989]
[1757870706791,1.03354328,4614.2,4614.0,0.58058956]
[1757870706963,0.20234328,4614.1,4614.0,0.58058956]
[1757870707292,0.20234328,4614.1,4614.0,0.58086189]
[1757870707461,0.51794328,4614.1,4614.0,0.58086189]
[1757870707657,0.51794328,4614.1,4614.0,2.74817875]
[1757870708196,0.51794328,4614.1,4614.0,2.16731686]
[1757870708872,0.51794328,4614.1,4614.0,2.74822541]
[1757870709760,0.51794328,4614.1,4613.3,4.0843]
[1757870709761,1.03354328,4614.1,4613.9,0.58090855]
[1757870709964,1.03354328,4614.1,4613.5,2.74844747]
[1757870709965,0.108,4613.9,4613.5,2.74844747]
[1757870710184,0.20234328,4613.8,4613.7,2.16745778]
[1757870710590,0.20234328,4613.8,4613.7,2.48275778]
[1757870710796,3.64,4614.0,4613.9,2.16736383]
[1757870711168,3.64,4614.0,4613.9,2.48266383]
[1757870711710,0.108,4614.1,4614.0,2.16731686]
[1757870712381,3.64,4614.2,4614.1,2.16726989]
[1757870713115,0.32392851,4614.6,4614.5,2.16708202]
[1757870713116,3.76147909,4614.6,4614.5,2.16708202]
[1757870713494,3.76145434,4614.6,4614.5,2.48238202]
[1757870714017,3.64,4614.6,4614.5,2.48238202]
[1757870714509,1.772,4614.7,4614.6,2.16703506]
[1757870714900,1.97444519,4614.7,4614.6,2.48233506]
[1757870715633,0.31044519,4614.7,4614.6,2.48233506]
[1757870715787,0.20244519,4614.7,4614.6,3.40113506]
[1757870716181,0.20244519,4614.7,4614.6,3.98204361]
[1757870716700,0.20244519,4614.7,4614.6,3.06324361]
[1757870717009,0.20244519,4614.7,4614.6,3.98204361]
[1757870717684,0.20244519,4614.7,4614.6,4.00371396]
[1757870717879,0.20244519,4614.9,4614.8,2.16694114]
[1757870718080,0.20244519,4614.9,4614.8,2.50391055]
[1757870718616,0.002,4615.0,4614.9,2.16689419]
[1757870718789,0.002,4615.0,4614.9,4.10087177]
[1757870718989,0.002,4615.0,4614.9,7.50250283]
[1757870719189,0.002,4615.0,4614.9,8.66343345]
[1757870720413,0.002,4615.0,4614.9,11.14150283]
[1757870720580,0.002,4615.0,4614.9,12.58844029]
[1757870720995,0.002,4615.0,4614.9,12.48044029]
[1757870721182,0.002,4615.0,4614.9,12.58844029]
[1757870722182,0.002,4615.0,4614.9,8.94944029]
[1757870722379,0.002,4615.0,4614.9,12.58807713]
[1757870723313,0.002,4615.0,4614.9,13.74628644]
[1757870723889,0.002,4615.0,4614.9,12.58807713]
[1757870724510,0.002,4615.0,4614.9,12.59007713]
[1757870724821,0.002,4615.0,4614.9,12.59107713]
[1757870726125,0.002,4615.0,4614.9,12.59074454]
[1757870726437,0.002,4615.0,4614.9,12.48274454]
[1757870726791,0.9018,4617.0,4616.7,2.16604705]
[1757870726997,0.9018,4617.0,4616.8,2.16599929]
[1757870727195,0.5156,4617.0,4616.4,3.651]
[1757870727399,0.3156,4616.9,4616.6,2.16607359]
[1757870727600,0.5156,4616.8,4616.5,2.16614318]
[1757870727796,0.3156,4616.6,4616.5,2.16614318]
[1757870728107,0.8312,4616.6,4616.5,2.16614318]
[1757870728718,0.8312,4616.6,4616.4,5.81718981]
[1757870728915,0.4342,4616.5,4616.4,5.81718981]
[1757870729101,0.4342,4616.5,4615.7,1.663]
[1757870729102,1.2654,4616.5,4615.7,2.16651037]
[1757870729314,1.2654,4616.5,4615.2,0.77084734]
[1757870729315,0.9292,4616.4,4615.9,2.16642451]
[1757870729540,0.9292,4616.4,4615.1,2.74493534]
[1757870729541,0.9292,4616.4,4615.5,3.652]
[1757870729761,0.4321,4616.3,4615.6,0.20069357]
[1757870729897,0.9292,4616.3,4615.8,2.16647168]
[1757870730098,0.3118,4615.9,4615.5,3.651]
[1757870730404,0.3118,4615.9,4615.6,0.2006985]
[1757870730618,1.241,4615.9,4615.7,0.2006985]
[1757870730816,1.241,4615.9,4615.8,2.16647168]
[1757870731653,1.241,4615.9,4614.9,0.5781355]
[1757870731815,1.241,4615.9,4615.3,2.16666143]
[1757870731816,0.4536,4615.8,4615.3,2.16666143]
[1757870732016,0.4536,4615.8,4615.3,3.65]
[1757870732219,0.3022,4615.4,4615.3,5.81670638]
[1757870732418,0.3022,4615.4,4615.3,6.01747241]
[1757870732600,0.3022,4615.4,4615.3,3.85076603]
[1757870732912,1.2235,4615.4,4614.7,5.81694854]
[1757870733120,0.4536,4615.3,4614.9,2.16689419]
[1757870733322,0.9213,4615.3,4615.0,0.20080735]
[1757870733522,0.3022,4615.1,4614.7,3.65]
[1757870733840,0.9213,4615.0,4614.8,0.20081763]
[1757870734154,1.2235,4614.9,4614.6,0.001]
[1757870734312,1.2235,4614.9,4614.7,0.20085078]
[1757870734660,1.2235,4614.9,4614.6,0.001]
[1757870734661,0.9213,4614.8,4614.6,0.001]
[1757870735145,1.2235,4614.7,4614.6,0.001]
[1757870737244,0.3022,4614.7,4614.6,0.001]
[1757870737556,0.4677,4615.8,4614.6,0.52987461]
[1757870737756,0.4536,4615.7,4614.7,0.22260441]
[1757870737937,0.65541991,4615.7,4614.9,2.16685479]
[1757870738151,0.65541991,4615.7,4615.1,2.16678444]
[1757870738346,0.20181991,4615.7,4615.3,2.16668838]
[1757870738547,0.20181991,4615.7,4614.8,3.65]
[1757870738548,1.663,4616.1,4615.4,0.47996659]
[1757870738874,1.663,4616.1,4615.7,2.16651092]
[1757870739029,1.663,4616.1,4615.3,0.4583]
[1757870739030,1.663,4616.1,4615.8,2.1880963]
[1757870739241,0.3022,4615.9,4615.7,2.16651629]
[1757870740055,0.3022,4615.9,4615.6,2.16656508]
[1757870740661,0.3022,4615.9,4615.2,3.65]
[1757870740877,0.3022,4615.9,4615.7,2.16651348]
[1757870741550,0.3022,4615.9,4615.4,2.16661568]
[1757870741788,0.9213,4615.8,4615.4,2.16661568]
[1757870741942,0.9213,4615.8,4615.2,3.65]
[1757870741943,0.4677,4615.8,4615.5,2.16656634]
[1757870742275,0.3022,4615.6,4615.5,2.16656634]
[1757870742774,0.3022,4615.6,4615.4,2.16665044]
[1757870743133,0.3022,4615.6,4614.9,3.649]
[1757870743344,0.3022,4615.6,4615.0,0.2012655]
[1757870743662,0.3022,4615.6,4615.5,2.1666125]
[1757870743956,0.3022,4615.6,4615.5,0.2012655]
[1757870744565,0.3022,4615.6,4615.5,2.367878]
[1757870745062,0.3022,4615.6,4614.9,3.649]
[1757870745246,0.3022,4615.6,4615.0,0.20132044]
[1757870745575,0.3022,4615.6,4615.5,2.1666125]
[1757870745781,0.3022,4615.6,4615.5,2.36793294]
[1757870746083,0.3022,4615.6,4615.5,0.20132044]
[1757870746392,1.2235,4615.6,4615.5,0.20132044]
[1757870746592,1.2235,4615.6,4615.2,2.16671159]
[1757870746777,0.7558,4615.6,4615.3,0.20140879]
[1757870746982,0.4677,4615.5,4615.4,0.20140873]
[1757870747344,0.7699,4615.5,4615.4,0.20140873]
[1757870747691,0.8779,4615.5,4615.4,0.20140873]
[1757870747893,0.4102,4615.5,4615.4,0.20140873]
[1757870748094,0.108,4615.5,4615.4,2.36806817]
[1757870748696,0.4102,4615.5,4615.4,2.36806817]
[1757870749987,0.4102,4615.5,4615.4,0.20140873]
[1757870752774,0.4102,4615.5,4615.4,2.36806817]
[1757870753882,0.108,4615.5,4615.4,2.36806817]
[1757870754197,0.4102,4615.5,4615.4,0.20140873]
[1757870754771,0.4102,4615.5,4615.4,2.36806817]
[1757870757878,0.108,4615.5,4615.4,2.36806817]
[1757870758808,0.108,4615.5,4615.4,2.67886817]
[1757870759014,0.32377326,4616.4,4616.1,2.16630034]
[1757870759210,0.2867,4616.2,4616.0,2.16634117]
[1757870759512,0.2867,4616.2,4616.1,2.36809205]
[1757870760216,0.7516,4616.2,4616.1,0.20176117]
[1757870760506,4.8759,4616.2,4616.1,0.20176117]
[1757870760805,5.71964059,4616.2,4615.7,2.16651271]
[1757870760993,1.26197326,4616.1,4615.8,0.20181211]
[1757870761201,3.42831439,4616.1,4615.9,0.20181211]
[1757870761401,3.42831439,4616.1,4616.0,0.20181211]
[1757870761402,0.32377326,4616.1,4616.0,0.20181211]
[1757870761597,1.06074732,4616.1,4616.0,0.20181211]
[1757870761985,4.85387406,4616.1,4616.0,0.20181211]
[1757870762185,7.8172782,4616.1,4616.0,0.20181211]
[1757870762376,7.8172782,4616.1,4615.2,0.5781355]
[1757870762377,5.65094732,4616.1,4615.2,0.5781355]
[1757870762579,0.32377326,4616.0,4615.3,2.36851048]
[1757870762805,0.88886799,4616.0,4615.4,2.36849063]
[1757870762992,0.2875,4615.5,4615.2,0.5781355]
[1757870763204,0.2875,4615.5,4615.4,2.16665944]
[1757870763403,0.2875,4615.5,4615.4,2.36850511]
[1757870763603,0.2875,4615.5,4615.4,0.20184567]
[1757870764111,0.4649,4615.8,4615.4,0.20184567]
[1757870764352,2.55186799,4616.0,4615.9,2.16642474]
[1757870764353,1.663,4616.0,4615.9,2.16642474]
[1757870764617,0.6249,4616.8,4615.9,1.63968814]
[1757870764618,1.98677326,4616.7,4615.9,1.63968814]
[1757870764911,1.663,4616.7,4616.6,2.16609626]
[1757870765216,1.663,4616.7,4616.6,2.67054193]
[1757870765217,1.98677326,4616.7,4616.6,2.67054193]
[1757870765581,1.98677326,4616.7,4616.6,0.50444567]
[1757870765920,1.98677326,4616.7,4616.6,0.20184567]
[1757870767900,3.21247326,4616.7,4616.6,0.20184567]
[1757870768108,4.11571157,4616.7,4616.6,0.20184567]
[1757870768317,3.64241157,4616.7,4616.6,0.20184567]
[1757870768828,4.11571157,4616.7,4616.6,0.20184567]
[1757870769031,3.64241157,4616.7,4616.6,0.20184567]
[1757870769191,3.64241157,4616.7,4616.1,2.1663175]
[1757870769394,0.108,4616.3,4616.2,0.20158519]
[1757870770294,0.8604,4616.3,4616.2,0.20158519]
[1757870770732,0.3955,4616.3,4616.2,0.20158519]
[1757870772026,0.108,4616.3,4616.2,0.50418519]
[1757870772209,3.757,4616.3,4616.2,3.12266914]
[1757870772411,3.97309663,4616.6,4616.3,2.16623354]
[1757870772605,3.97309663,4616.6,4616.5,0.3026]
[1757870772936,3.97309663,4616.6,4616.5,0.7548]
[1757870773288,3.97309663,4616.6,4616.5,2.46874318]
[1757870773492,3.97309663,4616.6,4616.1,0.4522]
[1757870773718,3.97309663,4616.6,4616.2,0.2015284]
[1757870773926,0.108,4616.5,4616.4,2.1661901]
[1757870774129,0.108,4616.5,4616.4,2.3677185]
[1757870774292,0.108,4616.5,4616.4,0.5041284]
[1757870774496,0.108,4616.5,4616.4,2.6703185]
[1757870774795,0.108,4616.5,4616.4,0.5041284]
[1757870775098,0.108,4616.5,4616.4,2.6703185]
[1757870775631,0.108,4616.5,4616.4,3.5889185]
[1757870775829,3.758,4616.5,4616.4,3.5889185]
[1757870776031,0.32409663,4616.6,4616.5,2.16614318]
[1757870776239,0.002,4617.0,4616.5,2.16614318]
[1757870776240,0.002,4617.0,4616.9,2.16595551]
[1757870776404,3.65,4617.0,4616.9,2.46855551]
[1757870776606,3.65,4617.0,4616.9,2.92075551]
[1757870777309,0.002,4617.0,4616.9,2.46855551]
[1757870777509,0.002,4617.0,4616.9,3.61022904]
[1757870777756,0.002,4617.0,4616.9,4.18785688]
[1757870777916,0.002,4617.0,4616.9,4.29585688]
[1757870778740,0.002,4617.0,4616.9,5.06619733]
[1757870780336,0.002,4617.0,4616.9,8.60819733]
[1757870780514,0.002,4617.0,4616.9,9.18633283]
[1757870781607,0.002,4617.0,4616.9,8.60819733]
[1757870781807,0.002,4617.0,4616.9,11.60772896]
[1757870782407,0.002,4617.0,4616.9,12.63485485]
[1757870782732,0.002,4617.0,4616.9,12.01469062]
[1757870782937,0.002,4617.0,4616.9,11.75472896]
[1757870783170,0.002,4617.0,4616.9,13.29422972]
[1757870783833,0.002,4617.0,4616.9,7.30572896]
[1757870784022,0.002,4617.0,4616.9,10.96272896]
[1757870784332,0.002,4617.0,4616.9,12.90922326]
[1757870784532,0.002,4617.0,4616.9,12.11722326]
[1757870784717,0.002,4617.0,4616.9,12.90922326]
[1757870785119,0.002,4617.0,4616.9,11.75472896]
[1757870785520,0.002,4617.0,4616.9,12.90922326]
[1757870786123,0.002,4617.0,4616.9,11.75472896]
[1757870786464,0.002,4617.0,4616.9,11.61472896]
[1757870787360,0.002,4617.0,4616.9,12.76782989]
[1757870788243,0.002,4617.0,4616.9,9.11082989]
[1757870788757,0.002,4617.0,4616.9,12.76982989]
[1757870789057,0.002,4617.0,4616.9,11.61672896]
[1757870789258,0.002,4617.0,4616.9,12.76938132]
[1757870790125,0.002,4617.0,4616.9,7.95772896]
[1757870790465,0.002,4617.0,4616.9,11.72572896]
[1757870791452,0.002,4617.0,4616.9,8.06572896]
[1757870791754,0.002,4617.0,4616.9,11.72572896]
[1757870791957,0.002,4617.0,4616.9,8.06572896]
[1757870792252,0.002,4617.0,4616.9,7.1236947]
[1757870792454,0.002,4617.0,4616.9,10.45462896]
[1757870792662,0.002,4617.0,4616.9,11.24662896]
[1757870793055,0.002,4617.0,4616.9,11.24585649]
[1757870794060,0.002,4617.0,4616.9,11.70705649]
[1757870794632,0.002,4617.0,4616.9,12.47562223]
[1757870795451,0.002,4617.0,4616.9,8.81662223]
[1757870795762,0.002,4617.0,4616.9,11.57392223]
[1757870795931,0.002,4617.0,4616.9,12.01442223]
[1757870797045,0.002,4617.0,4616.9,12.01489918]
[1757870797363,0.002,4617.0,4616.9,12.47609918]
[1757870797581,0.002,4617.0,4616.9,8.81709918]
[1757870797737,0.002,4617.0,4616.9,12.47509918]
[1757870798669,0.002,4617.0,4616.9,11.70605649]
[1757870799360,0.002,4617.0,4616.9,11.91353912]
[1757870800234,0.002,4617.0,4616.9,14.10281457]
[1757870801134,0.002,4617.0,4616.9,12.56331381]
[1757870802587,0.08,4618.8,4617.4,2.95772096]
[1757870802588,1e-08,4617.5,4617.4,2.95772096]
[1757870802788,1e-08,4617.5,4617.4,13.1805454]
[1757870803309,1e-08,4617.5,4617.4,13.6369454]
[1757870805768,1e-08,4620.8,4617.6,0.792]
[1757870805965,1e-08,4620.8,4620.2,2.16439874]
[1757870806202,0.9412,4620.7,4620.3,2.16435824]
[1757870806499,0.2963,4620.4,4620.3,2.16435824]
[1757870806665,1.2375,4620.4,4620.2,2.1644009]
[1757870807000,0.9412,4620.3,4620.2,2.16436245]
[1757870807173,1.2375,4620.3,4620.2,2.16436245]
[1757870807576,1.36125,4620.3,4619.9,2.16454319]
[1757870807776,0.9412,4620.2,4620.0,2.36508946]
[1757870807996,0.9412,4620.2,4620.0,2.16449937]
[1757870808300,1.2375,4620.1,4620.0,2.16449937]
[1757870808481,1.2375,4620.1,4620.0,0.2006159]
[1757870808801,1.2375,4620.1,4620.0,2.36511806]
[1757870809195,1.2375,4620.1,4620.0,0.2006159]
[1757870810491,1.2375,4620.1,4620.0,2.36511806]
[1757870810998,1.2375,4620.1,4620.0,0.2006159]
[1757870812010,1.37205,4620.1,4619.6,0.108]
[1757870812305,1.37205,4620.1,4619.7,0.20074045]
[1757870812610,0.4564,4620.0,4619.8,2.16459263]
[1757870812799,0.4564,4620.0,4619.9,2.16454901]
[1757870812800,0.9412,4620.0,4619.9,2.16454901]
[1757870812988,1.2375,4620.0,4619.9,2.16454901]
[1757870814608,1.2375,4620.0,4619.8,2.1645921]
[1757870814809,0.9412,4619.9,4619.6,2.2726822]
[1757870815112,0.9412,4619.8,4619.7,0.20073967]
[1757870815335,1.2375,4619.8,4619.7,0.20073967]
[1757870815518,1.2375,4619.8,4619.5,2.16473003]
[1757870815717,0.9412,4619.7,4619.6,0.200744]
[1757870816020,0.9412,4619.7,4619.6,2.36543358]
[1757870816212,1.2371,4619.7,4619.6,0.200744]
[1757870816414,1.37161,4619.7,4619.3,2.16482603]
[1757870816618,1.0565,4619.6,4619.4,0.20075266]
[1757870816832,1.0565,4619.6,4619.3,2.16482603]
[1757870817036,0.9485,4619.5,4619.4,0.20075786]
[1757870817235,0.108,4619.4,4618.7,3.0]
[1757870817442,0.9485,4619.3,4618.8,0.20080844]
[1757870817667,0.9485,4619.3,4618.9,0.20080844]
[1757870817845,0.9485,4619.3,4618.7,2.16506997]
[1757870818029,0.2959,4619.0,4618.8,2.38753715]
[1757870818345,0.2959,4619.0,4618.9,2.16501764]
[1757870818683,0.13451,4619.7,4618.9,2.16501764]
[1757870818684,0.32330046,4619.8,4619.1,2.16487753]
[1757870818815,0.2959,4619.2,4618.8,3.655]
[1757870819010,0.9485,4619.1,4619.0,2.16492678]
[1757870819217,0.7729,4619.1,4619.0,2.16492678]
[1757870819417,0.2959,4619.1,4619.0,2.16492678]
[1757870820052,0.4776,4619.5,4619.4,2.1647833]
[1757870820225,1.2335,4619.5,4619.4,2.1647833]
[1757870820426,1.2335,4619.5,4619.0,2.16493369]
[1757870820427,1.2335,4619.5,4619.1,2.1865679]
[1757870820623,0.3094,4619.5,4619.4,2.1647833]
[1757870820845,0.7559,4619.5,4619.2,2.16487703]
[1757870821046,0.4465,4619.4,4618.5,0.5771913]
[1757870821254,0.9241,4619.4,4619.2,2.16487674]
[1757870821423,1.2335,4619.3,4619.2,2.16487674]
[1757870823342,1.2335,4619.3,4619.1,2.16491793]
[1757870823543,0.7559,4619.3,4619.1,2.16491793]
[1757870823754,0.9241,4619.2,4618.6,6.40534002]
[1757870823919,0.4465,4619.2,4618.7,0.20087771]
[1757870824257,0.3094,4618.8,4618.6,2.16515603]
[1757870824422,0.3094,4618.8,4618.0,0.5771913]
[1757870824423,0.4776,4618.7,4618.0,0.5771913]
[1757870824622,0.9241,4618.7,4618.1,0.20098794]
[1757870824834,0.3094,4618.2,4618.1,2.16539269]
[1757870825149,0.3094,4618.2,4618.1,2.36640718]
[1757870825852,0.9241,4618.7,4618.3,2.16528332]
[1757870826070,0.4776,4619.2,4618.4,0.02165252]
[1757870826229,0.3094,4618.5,4618.3,2.16525219]
[1757870826537,0.3094,4618.5,4617.9,4.2391913]
[1757870826737,0.4776,4618.4,4618.2,2.1653458]
[1757870826943,0.3094,4618.3,4618.2,2.1653458]
[1757870827143,0.3094,4618.3,4618.2,2.36637752]
[1757870827555,0.9241,4618.7,4618.6,2.16515827]
[1757870827751,1.2335,4618.7,4618.6,2.16515827]
[1757870828275,0.4776,4619.2,4618.7,2.16509766]
[1757870828459,0.108,4619.0,4618.9,2.16498585]
[1757870828752,0.4776,4619.2,4618.5,0.108]
[1757870830151,0.4776,4619.2,4618.6,2.16511767]
[1757870830453,0.3094,4618.7,4618.6,2.16515827]
[1757870831545,0.787,4618.7,4618.0,2.74261127]
[1757870831751,0.787,4618.7,4618.2,2.16533627]
[1757870831925,0.787,4618.7,4618.0,2.16541997]
[1757870831926,0.787,4618.7,4618.3,2.18694421]
[1757870832145,0.787,4618.7,4618.3,2.18695031]
[1757870832342,0.3094,4618.7,4618.5,2.1651589]
[1757870832656,0.32330046,4619.2,4618.8,2.16504868]
[1757870832861,0.93248051,4619.2,4618.8,2.16504868]
[1757870833471,1.41008051,4619.2,4618.9,2.16501495]
[1757870833674,1.41008051,4619.2,4618.8,2.1650591]
[1757870833879,0.3094,4618.9,4618.6,2.16511777]
[1757870834376,0.4776,4618.8,4618.4,2.16521554]
[1757870834551,0.3094,4618.5,4618.1,3.66]
[1757870834900,0.3094,4618.5,4618.3,2.16529107]
[1757870835251,0.3094,4618.5,4618.1,5.82539152]
[1757870835682,0.3094,4618.5,4618.4,2.16525203]
[1757870835987,0.90226768,4619.1,4618.6,2.16515661]
[1757870836159,0.3094,4618.7,4618.6,2.16515661]
[1757870836348,0.3094,4618.7,4618.3,2.18694898]
[1757870836349,0.3094,4618.7,4618.4,2.16521443]
[1757870836548,0.3094,4618.7,4618.5,2.18684495]
[1757870836751,0.3094,4618.7,4618.6,2.16515827]
[1757870838284,1.662,4620.5,4618.7,0.792]
[1757870838448,5.8006,4620.5,4620.0,2.1644737]
[1757870838649,0.3094,4620.1,4620.0,2.1644737]
[1757870838969,0.42044909,4620.1,4620.0,2.1644737]
[1757870839284,0.32349088,4620.4,4620.0,0.3125]
[1757870839921,1.662,4620.5,4620.0,0.3125]
[1757870840287,1.662,4620.5,4620.3,2.16434542]
[1757870840487,0.3094,4620.4,4620.2,2.16440647]
[1757870841102,0.3094,4620.4,4620.0,2.18611137]
[1757870841326,0.3094,4620.4,4620.1,2.16445401]
[1757870841698,0.3094,4620.4,4620.0,2.16449332]
[1757870842013,0.3094,4620.4,4620.1,0.02164455]
[1757870842182,0.3094,4620.4,4620.0,2.16449694]
[1757870842690,0.3094,4620.4,4620.1,0.02164455]
[1757870843818,0.3094,4620.4,4620.2,2.16440846]
[1757870844247,1.9721818,4620.5,4620.4,2.16431477]
[1757870844626,0.00200001,4620.8,4620.7,2.16417425]
[1757870844930,0.00200001,4620.8,4620.7,2.18581599]
[1757870845111,0.00200001,4620.8,4620.7,2.96211599]
[1757870845315,0.003,4622.3,4622.2,2.16347193]
[1757870845532,0.003,4622.3,4622.2,2.92467193]
[1757870845747,0.003,4622.3,4622.2,3.38847193]
[1757870846047,0.003,4622.3,4622.2,2.92467193]
[1757870846350,0.08,4622.8,4622.7,2.16323793]
[1757870846557,0.08,4622.8,4622.7,6.05468175]
[1757870846851,0.08,4622.8,4622.7,2.93953793]
[1757870847102,0.003,4623.8,4623.7,2.16277007]
[1757870847234,0.08,4624.8,4624.7,2.16230241]
[1757870847235,1e-08,4624.8,4624.7,2.16230241]
[1757870847415,1e-08,4624.8,4624.7,0.3125]
[1757870847756,1.23350001,4624.8,4623.7,3.779]
[1757870847919,0.78700001,4624.8,4624.1,2.16254553]
[1757870848247,0.78700001,4624.8,4623.7,3.0]
[1757870848417,0.78700001,4624.8,4623.6,3.0]
[1757870848617,0.12335,4624.7,4623.8,0.02162723]
[1757870848854,0.3094,4623.9,4623.2,5.444]
[1757870849052,0.3094,4623.9,4622.9,3.781]
[1757870849252,0.3094,4623.9,4622.9,5.94413229]
[1757870849558,0.3094,4623.9,4622.7,0.4487]
[1757870849856,0.46150001,4624.8,4623.8,0.3081]
[1757870850014,0.4724,4624.5,4623.3,3.0]
[1757870850220,0.4615,4624.7,4623.4,0.4614]
[1757870850415,0.4615,4624.7,4623.5,0.02162863]
[1757870850621,1e-08,4624.8,4623.6,0.4614]
[1757870850923,1e-08,4624.8,4623.6,0.9597]
[1757870851264,1e-08,4624.8,4623.7,3.802]
[1757870851646,1e-08,4624.8,4623.8,2.16268012]
[1757870851964,0.47240001,4624.8,4623.5,3.801]
[1757870852169,0.47240001,4624.8,4623.2,1.661]
[1757870852366,0.4615,4624.7,4623.2,3.82399117]
[1757870852575,0.4615,4624.7,4622.3,2.16340783]
[1757870852576,1.2535,4624.6,4622.2,0.4983]
[1757870852866,1.2535,4624.6,4623.1,2.16304422]
[1757870852867,6.93535,4624.5,4623.1,2.16304422]
[1757870853173,3.0,4624.3,4622.6,1.838]
[1757870853387,0.9339,4624.2,4622.5,0.4614]
[1757870853576,0.9339,4624.2,4622.2,2.16346522]
[1757870853771,1.70963776,4624.1,4622.3,3.0]
[1757870853945,2.16291612,4623.4,4622.3,3.0]
[1757870854144,4.2745,4623.4,4622.2,1.24388652]
[1757870854731,0.108,4623.2,4622.5,0.108]
[1757870855032,0.108,4623.2,4622.6,0.02163284]
[1757870855741,0.108,4623.2,4622.5,2.27132675]
[1757870856366,0.108,4623.2,4622.5,0.108]
[1757870857380,2.16305107,4623.1,4622.5,0.108]
[1757870858049,2.16305107,4623.1,4622.0,5.6249553]
[1757870858361,0.65159,4623.2,4622.0,5.6249553]
[1757870858362,0.108,4623.0,4622.2,0.108]
[1757870858957,0.5695,4623.0,4622.2,0.108]
[1757870859165,0.3053,4622.3,4621.6,2.62512753]
[1757870859349,0.3053,4622.3,4621.9,0.108]
[1757870860085,1.661,4623.8,4622.2,0.3081]
[1757870860260,3.802,4623.7,4622.6,2.16325676]
[1757870860587,0.002,4623.0,4622.6,2.16325676]
[1757870860755,0.002,4623.0,4622.9,2.16314434]
[1757870861162,0.002,4623.0,4622.9,0.3081]
[1757870861366,0.002,4623.0,4622.9,0.7695]
[1757870861564,0.002,4623.0,4622.9,3.43094434]
[1757870861886,0.002,4623.0,4622.9,3.45257578]
[1757870862053,0.002,4623.0,4622.9,4.01415571]
[1757870862253,0.002,4623.0,4622.9,7.01415571]
[1757870862548,0.002,4623.0,4622.9,6.99252427]
[1757870862961,0.002,4623.0,4622.9,7.78452427]
[1757870865861,0.002,4623.0,4622.9,11.60152427]
[1757870866507,0.002,4623.0,4622.9,11.79991955]
[1757870868399,0.002,4623.0,4622.9,12.37093069]
[1757870868580,0.002,4623.0,4622.9,3.69261955]
[1757870868775,0.002,4623.0,4622.9,6.76727578]
[1757870869092,0.002,4623.0,4622.9,5.16314434]
[1757870869419,0.002,4623.0,4622.9,8.97614434]
[1757870869867,0.3073,4623.0,4622.2,1.661]
[1757870870073,0.3073,4623.0,4622.9,0.108]
[1757870870273,0.002,4623.0,4622.9,2.27114434]
[1757870870667,0.002,4623.0,4622.9,2.29277578]
[1757870870866,0.3073,4623.0,4622.9,0.108]
[1757870871067,0.7688,4623.0,4622.9,2.27114434]